Cogmind - Beta 15 @@@ ROGUE MODE // 2025.05.23 @ 15:39:41 // Winter2019/RPGLIKE Player: KeKe Result: Destroyed by D-53 Grenadier with Mini Grenade Launcher Performance ------------- Evolutions (1) 500 Regions Visited (3) 600 Robots Destroyed (4) 20 Value Destroyed (27) 27 Prototype IDs (2) 40 Alien Tech Used (0) 0 Bonus (0) 0 TOTAL SCORE: 1187 Bonus ------- None Cogmind --------- Core Integrity 0/600 Matter 221/300 Energy 125/125 System Corruption 0% Temperature Cool (0) Movement Core (150) Ox2 Location -9/Mines Parts ------- > --- POWER (1) -------- Light Ion Engine > --- PROPULSION (1) --- (None) > --- UTILITY (1) ------ Advanced Visual Processing Unit > --- WEAPON (1) ------- Rocket Launcher > --- INVENTORY (1) ---- Flight Unit Peak State ------------ > --- POWER ------------ Light Ion Engine > --- PROPULSION ------- Flight Unit > --- UTILITY ---------- Advanced Visual Processing Unit > --- WEAPON ----------- Rocket Launcher > --- INVENTORY -------- (None) [Rating: 7] Favorites ----------- Power Light Ion Engine Engine Light Ion Engine Propulsion Flight Unit Wheel Wheel Flight Unit Flight Unit Utility Advanced Visual Processing Unit Device Seismic Detector Processor Advanced Visual Processing Unit Weapon Light Assault Rifle Ballistic Gun Light Assault Rifle Launcher Rocket Launcher Build | -11 -10 -9 -9 ------- Run | Yrd Mat Mat Min Slots Evolved . | . . . . Power . | . . . . Propulsion . | . . . . Utility . | . . . . Weapon . | . . . . Parts Attached 8 | 4 1 1 2 Power 1 | 1 . . . Engine 1 | 1 . . . Core . | . . . . Reactor . | . . . . Propulsion 3 | 1 1 . 1 Treads . | . . . . Leg . | . . . . Wheel 1 | 1 . . . Hover . | . . . . Flight 2 | . 1 . 1 Utility 2 | 1 . 1 . Device 1 | 1 . . . Storage . | . . . . Processor 1 | . . 1 . Hackware . | . . . . Protection . | . . . . Artifact . | . . . . Weapon 2 | 1 . . 1 Energy Gun . | . . . . Energy Cannon . | . . . . Ballistic Gun 1 | 1 . . . Ballistic Cannon . | . . . . Launcher 1 | . . . 1 Special Weapon . | . . . . Impact Weapon . | . . . . Slashing Weapon . | . . . . Piercing Weapon . | . . . . Special Melee Weapon . | . . . . Unidentified Prototypes . | . . . . Parts Lost 1 | . . . 1 Power . | . . . . Propulsion 1 | . . . 1 Utility . | . . . . Weapon . | . . . . Highest Loss Streak 1 | . . . 1 To Critical Strikes . | . . . . Average Backups . | . . 1 . Power . | . . . . Propulsion . | . . 1 . Utility . | . . . . Weapon . | . . . . Tool/Special . | . . . . Unused Backups . | . . . . Power . | . . . . Propulsion . | . . . . Utility . | . . . . Weapon . | . . . . Tool/Special . | . . . . Average Slot Usage (%) 85 | . 79 87 93 Engine 25 | . 25 25 25 Flight 22 | . 22 25 18 Device 1 | . 4 . . Processor 10 | . . 12 25 Ballistic Gun 23 | . 25 25 18 Launcher 1 | . . . 6 Peak Build Rating 7 | 4 4 6 7 Average Rating 3 | 2 3 4 5 On Entrance 3 | . 4 3 6 Naked Turns . | . . . . Heaviest Build 7 | 5 5 4 7 Greatest Support 10 | 10 10 4 4 Greatest Overweight (x) 2 | . . . 2 Average Overweight (x) . | . . . . Largest Inventory Capacity 1 | . 1 1 1 Average Capacity . | . . 1 1 Most Carried 1 | . 1 1 1 Average Carried . | . . 1 . Final Capacity 1 | . 1 1 1 Final Carried 1 | . 1 1 1 Class Distribution -------------------- 100% | Hacker-Mutant Dominant Class ---------------- Hacker-Mutant | -10/Materials Hacker-Mutant | -9/Materials Hacker-Mutant | -9/Mines Resources | -11 -10 -9 -9 ----------- Run | Yrd Mat Mat Min Matter Collected 270 | 270 . . . Remotely . | . . . . Salvage Created 153 | 153 . . . Parts 10 | 10 . . . Haulers Intercepted . | . . . . Recyclers Shooed 1 | 1 . . . Parts Field Recycled . | . . . . Retrieved Matter . | . . . . Parts Self-Destructed . | . . . . Prevented . | . . . . Kills | -11 -10 -9 -9 ------- Run | Yrd Mat Mat Min Combat Hostiles Destroyed . | . . . . Classes Destroyed 2 | 2 . . . Tunneler 3 | 3 . . . Recycler 1 | 1 . . . Best Kill Streak 2 | 2 . . . Combat Bots Only . | . . . . Max Kills in Single Turn 1 | 1 . . . Gunslinging . | . . . . Exploded . | . . . . Melee . | . . . . Uniques/NPCs Destroyed . | . . . . Combat | -11 -10 -9 -9 -------- Run | Yrd Mat Mat Min Hostile Shots Fired 77 | . 5 29 43 Missed 40 | . 5 16 19 Hits 37 | . . 13 24 Melee 1 | . . . 1 Projectile 36 | . . 13 23 AOE 7 | . . . 7 Critical Strikes 2 | . . 1 1 Damage Taken 706 | . . 173 533 Core 602 | . . 149 453 Absorbed by Shields . | . . . . Redirected to Core 378 | . . 86 292 Core Remaining (%) 100 | 100 100 . . Volleys Fired 34 | 30 . . 4 Largest 1 | 1 . . 1 Hottest 33 | 20 . . 33 Shots Fired 34 | 30 . . 4 Gun 30 | 30 . . . Cannon . | . . . . Launcher 4 | . . . 4 Special . | . . . . Kinetic 30 | 30 . . . Thermal . | . . . . Explosive 4 | . . . 4 Electromagnetic . | . . . . Robot Hit Streak 4 | 4 . . 4 Robot Miss Streak 2 | 2 . . 1 Penetration Max . | . . . . Secondary Targets . | . . . . Shots Hit Robots 22 | 19 . . 3 Core Hits 12 | 8 . . 4 Critical Kills . | . . . . Critical Parts Destroyed . | . . . . Critical Strikes . | . . . . Melee Attacks . | . . . . Impact . | . . . . Slashing . | . . . . Piercing . | . . . . Sneak Attacks . | . . . . Combat Hostiles . | . . . . Follow-up Attacks . | . . . . Damage Inflicted 218 | 153 . . 65 Guns 153 | 153 . . . Cannons . | . . . . Explosions 65 | . . . 65 Melee . | . . . . Ramming . | . . . . Kinetic 153 | 153 . . . Thermal . | . . . . Explosive 65 | . . . 65 Electromagnetic . | . . . . Impact . | . . . . Slashing . | . . . . Piercing . | . . . . Highest Corruption . | . . . . Average Corruption . | . . . . Corruption Purged . | . . . . Corruption Blocked . | . . . . Overload Shots . | . . . . Overflow Damage . | . . . . Projectiles . | . . . . Explosions . | . . . . Melee . | . . . . Knockbacks . | . . . . Impact . | . . . . Kinetic . | . . . . Secondary . | . . . . Self-Inflicted Damage 16 | . . . 16 Shots 1 | . . . 1 Rammed . | . . . . Targets Rammed . | . . . . Kicked . | . . . . Crushed . | . . . . Highest Temperature 11 | . . 11 5 Average Temperature 5 | . . 11 3 Received Heat Transfer 124 | . . 63 61 Siege Activations . | . . . . Martial Activations . | . . . . Shielding Activations . | . . . . Robots Disrupted . | . . . . Combat Hostiles . | . . . . Robots Corrupted . | . . . . Combat Hostiles . | . . . . Parts Fried . | . . . . Impact Corruptions . | . . . . Robots Melted . | . . . . Combat Hostiles . | . . . . Parts Melted . | . . . . Heat Transferred . | . . . . Parts Sabotaged . | . . . . Parts Stolen . | . . . . Parts Stripped . | . . . . Power Chain Reactions . | . . . . Alert | -11 -10 -9 -9 ------- Run | Yrd Mat Mat Min Maximum Alert Level . | . . . . Low Security (%) 100 | 100 100 100 100 Level 1 . | . . . . Level 2 . | . . . . Level 3 . | . . . . Level 4 . | . . . . Level 5 . | . . . . High Security . | . . . . Max Security . | . . . . Peak Influence 85 | 5 20 80 85 Initial 31 | . . 3 31 Average 21 | 2 4 40 47 Influence Increases 265 | 20 34 117 94 Destroy 0b10 Robot/NC 20 | 20 . . . Successful Hack 76 | . 4 72 . Destroy Structure 19 | . . . 19 Partial Spotted 15 | . 15 . . Lose Combat Pursuer 135 | . 15 45 75 Influence Decreases 180 | 20 24 47 89 Entered New Map 56 | . . 7 49 Time Decay 114 | 20 24 40 30 Lost Part 10 | . . . 10 Squads Dispatched 1 | . 1 . . Investigation 1 | . 1 . . Extermination . | . . . . Reinforcement . | . . . . Assault . | . . . . Garrison . | . . . . Intercept . | . . . . Searches Triggered . | . . . . Construction Impeded . | . . . . Haulers Reinforced . | . . . . Active Scanning Responses . | . . . . Cargo Convoy Interrupts . | . . . . Stealth | -11 -10 -9 -9 --------- Run | Yrd Mat Mat Min Distress Signals 2 | . . 2 . Communications Jammed . | . . . . Distress Signals . | . . . . Times Spotted 43 | . 6 10 27 Peak Tracking Total 23 | . 4 8 23 Tactical Retreats 5 | . 1 2 2 Traps | -11 -10 -9 -9 ------- Run | Yrd Mat Mat Min Traps Triggered 1 | . 1 . . Indirectly . | . . . . Trap Hack Attempts . | . . . . Triggered . | . . . . Disarmed . | . . . . Reprogrammed . | . . . . Reused . | . . . . Traps Extracted . | . . . . Installed . | . . . . Triggered . | . . . . Machines | -11 -10 -9 -9 ---------- Run | Yrd Mat Mat Min Machines Disabled . | . . . . Max in Single Turn . | . . . . Machines Repaired . | . . . . Machines Dismantled . | . . . . Machines Sabotaged . | . . . . Overloaded Fab Kills . | . . . . Hacking | -11 -10 -9 -9 --------- Run | Yrd Mat Mat Min Machines Accessed 8 | . 5 3 . Terminals 8 | . 5 3 . Fabricators . | . . . . Repair Stations . | . . . . Recycling Units . | . . . . Scanalyzers . | . . . . Garrison Access . | . . . . Total Hacks 41 | . 23 18 . Successful 26 | . 14 12 . Failed 15 | . 9 6 . Catastrophic 2 | . 1 1 . Database Lockouts . | . . . . Manual 28 | . 17 11 . Terminals 41 | . 23 18 . Fabricators . | . . . . Repair Stations . | . . . . Recycling Units . | . . . . Scanalyzers . | . . . . Garrison Access . | . . . . Terminal Hacks 17 | . 8 9 . Robot Analysis 5 | . 2 3 . Prototype ID Bank 1 | . 1 . . Level Access Points 1 | . . 1 . Branch Access Points 1 | . 1 . . Terminal Index 1 | . . 1 . Alert Level 1 | . . 1 . Dispatch Records 1 | . 1 . . Surveillance Status 1 | . . 1 . Transport Status 1 | . 1 . . Hauler Manifests 1 | . 1 . . Zone Layout 3 | . 1 2 . Fabricator Hacks . | . . . . Repair Station Hacks . | . . . . Recycling Unit Hacks . | . . . . Scanalyzer . | . . . . Garrison Access Hacks . | . . . . Unauthorized Hacks 9 | . 6 3 . Terminals 9 | . 6 3 . Assimilate 1 | . 1 . . Botnet 8 | . 5 3 . Fabricators . | . . . . Repair Stations . | . . . . Recycling Units . | . . . . Scanalyzers . | . . . . Garrison Access . | . . . . Data Cores Recovered . | . . . . Used . | . . . . Hacking Detections 7 | . 5 2 . Full Trace Events 1 | . 1 . . Feedback Events . | . . . . Feedback Blocked . | . . . . Robot Schematics Acquired . | . . . . Robots Built . | . . . . Authchips . | . . . . Time . | . . . . Total Robot Build Rating . | . . . . Part Schematics Acquired . | . . . . Parts Built . | . . . . Authchips . | . . . . Time . | . . . . Total Part Build Rating . | . . . . Parts Repaired . | . . . . Time . | . . . . Parts Recycled . | . . . . Recycled Matter . | . . . . Retrieved Matter . | . . . . Retrieved Components . | . . . . Parts Scanalyzed . | . . . . Part Schematics Acquired . | . . . . Parts Damaged . | . . . . Bothacking | -11 -10 -9 -9 ------------ Run | Yrd Mat Mat Min Used RIF Installer . | . . . . Robots Hacked . | . . . . Non-combat . | . . . . Combat . | . . . . Robot Hacks Applied . | . . . . Relay Couplers Released . | . . . . Fabnet Peak Effective % . | . . . . Robots Rewired . | . . . . Allies Hacked . | . . . . Hacks Repelled . | . . . . Allies | -11 -10 -9 -9 -------- Run | Yrd Mat Mat Min Total Allies 1 | . 1 . . Largest Group 1 | . 1 . . Highest-Rated Group 10 | . 10 . . Highest-Rated Ally 10 | . 10 . . Total Orders . | . . . . Ally Attacks . | . . . . Total Damage . | . . . . Kills . | . . . . Allies Corrupted . | . . . . Allies Melted . | . . . . Intel | -11 -10 -9 -9 ------- Run | Yrd Mat Mat Min Active Infowar (turns) 146 | 16 6 52 72 Optics 124 | . . 52 72 Seismic 22 | 16 6 . . Robot Analysis Total 5 | . 2 3 . Derelict Logs Recovered 1 | . . . 1 Drone Launches . | . . . . Drone Recoveries . | . . . . Exploration | -11 -10 -9 -9 ------------- Run | Yrd Mat Mat Min Turns Passed 375 | 103 106 94 72 Spaces Moved 645 | 54 248 232 111 Core 8 | 1 . . 7 Treads . | . . . . Legs . | . . . . Wheels 58 | 53 5 . . Hover . | . . . . Flight 579 | . 243 232 104 Fastest Speed 40 | 50 40 40 40 Average Speed 44 | 79 40 40 46 Slowest Speed 150 | 80 80 40 150 Overloaded Moves . | . . . . Propulsion Burnouts . | . . . . Robots Hopped 12 | . 2 7 3 Potential Cave-ins . | . . . . Cave-ins Triggered . | . . . . Exploration Rate (%) 28 | 3 42 31 39 Regions Visited 3 Branch Regions 1 Pre-discovered Areas 1 | . . . 1 Known Exits Taken . | . . . . Unknown Exits Taken 3 | 1 1 1 . Scrap Searched . | . . . . Spaces Dug . | . . . . Terrain Destroyed 42 | . . . 42 Melee . | . . . . Projectile . | . . . . AOE 42 | . . . 42 Terrain Rammed . | . . . . Walls Destroyed . | . . . . Machines Disabled . | . . . . Actions | -11 -10 -9 -9 --------- Run | Yrd Mat Mat Min Total 686 | 87 250 225 124 Wait 9 | . 1 . 8 Move 619 | 53 243 218 105 Hop 11 | . 2 6 3 Pick Up 1 | . 1 . . Fast Attach 7 | 4 1 1 1 Attach 1 | . . . 1 Detach 1 | . . . 1 Swap . | . . . . Drop 3 | . 2 . 1 Fire 34 | 30 . . 4 Melee . | . . . . Ram . | . . . . Kick . | . . . . Crush . | . . . . Escape Stasis . | . . . . Rewire . | . . . . Trap . | . . . . Miscellaneous . | . . . . Route ------- -11/Scrapyard -10/Materials (discovered 3 exits: *Mat x2 / *Min) -9/Materials (discovered 4 exits: Mat x3 / [*Min]) -9/Mines History --------- Turn | Location | Event 12 | -11/Scrapyard | Discovered new exit (range 16) 104 | -11/Scrapyard | Entered Materials 178 | -10/Materials | Discovered new exit (range 11) 198 | -10/Materials | Discovered new exit (range 7) 207 | -10/Materials | Discovered new exit (range 3) 209 | -10/Materials | Identified exit to Mines 210 | -10/Materials | Entered another Materials area 212 | -9/Materials | Reached level 2 282 | -9/Materials | Identified exit to Materials 297 | -9/Materials | Discovered new exit (range 19) 304 | -9/Materials | Entered Mines 309 | -9/Mines | Found a Scrap Suit stashed away for nefarious purposes 311 | -9/Mines | Build established: Hacker-Mutant 312 | -9/Mines | Assembled infested the area 314 | -9/Mines | Found a damaged Exp. Sensor Array with a note attached 323 | -9/Mines | Learned location of Recycling (-7) 324 | -9/Mines | Core integrity fell below 50% 354 | -9/Mines | Received a Rocket Launcher from a helpful Derelict 369 | -9/Mines | Core integrity fell below 20% 376 | -9/Mines | Destroyed by D-53 Grenadier with Mini Grenade Launcher Last Messages --------------- 00329_ as-54106 powers down. 00330_ C-30 ARC bursts open, deploying its payload. 00330_ D-53 Grenadier unfolds itself. 00330_ Flight Unit destroyed. 00348_ A derelict emerges from the shadows. 00349_ AF-VQV(g): "Some of my friends down here think you need a mining laser when you travel the depths." 00350_ AF-VQV(g): "Pshh... whatever." 00351_ AF-VQV(g): "Everyone knows a good old rocket launcher goes a long way." 00352_ AF-VQV(g): "Need to get rid of a swarm? Done. Need a big hole in the wall? Done." 00353_ AF-VQV(g): "Need a small hole in the wall? Leave that to the mining laser wimps, I say!" 00354_ AF-VQV(g): "Would you like a rocket launcher? I know I would if I were you, so I'm going to lend you mine." 00354_ AF-VQV(g) slips back into the shadows. 00355_ Dropped Lgt. Assault Rifle. 00356_ Acquired Rocket Launcher. 00373_ The unstable cave ceiling collapses. Map ----- +----------------------------------------------------+ | ??????????# | | ??????????# ###### | | ??????????# #????## #### # | | ????????### #?????####### # | | ????????# # #??????# # | | ?????????#" #??????# =%! | | ?????????## #??????# ######## = | | ??????????# #??????# ????????# | | ??????????# #??????#????????## | | ??????????# #??????#??????### | | ??????????# #??????# ????## | | ??????????# #??????# ????# ## | | ??????????# ##??#### ????# ##? | | ???????#### #?## # ???# #?? | | ??????## #?# ???# ##?? | | ??????# #?# ??# ###??? | | ??????# #??# ??# #????? | | ?????## #???# #?# #????? | | ?????? ?????# ## #????? | | ??????# ??????# # #????? | | ??????# d ##???????# " #????? | | ?????## d ##??????## ##???? | | ????## #???????## #???? | | ???## #????????# #???? | | ???# #????????# #####? | | ???## @ #????????# #? | | ????## #????????# ## #? | | ?????# #???????# ## #? | | ?????## #??????# ## #? | | ??????## #??????# ### ## | | ???????### ##?????# ##?# ## | | ?????????####??????# ##??# | | ??????????????????# #????# | | ??????????????????# #?????# | | ??????????????????## ###??????#### | | ???????????????????###????????????? | | ??????????????????????????????????? | | | | | | | | | | | | | | | | | | | | | | | | | | | +----------------------------------------------------+ Best States ------------- Heat Dissipation 25 Energy Generation 10 Energy Capacity 125 Matter Stores 300 Matter Capacity 300 Sight Range 20 Terrain Scan Density 10 Evasion (%) 62 Offensive Hacking 20 Defensive Hacking 15 Item Schematics ----------------- None Robot Schematics ------------------ None Fabricated ------------ Nothing Repaired ---------- Nothing Alien Tech Used ----------------- None Achievements -------------- None Challenges ------------ None RPGLIKE | -11 -10 -9 -9 --------- Run | Yrd Mat Mat Min Levels Raised 1 | . . 1 . XP Earned 5340 | 3000 . 1840 500 XP Spent 3750 | 2700 250 800 . Upgrades 8 | 6 1 1 . Inventory Capacity 1 | . 1 . . Hack Attack % 4 | 3 . 1 . Hack Defense % 3 | 3 . . . Protomatter Created . | . . . . Protomatter Decayed 11 | . . . 11 Game ------ Seed AssembledMediumAutobeam Manual? 0 Play Time 00:20:12 Cumulative 83.6 hours Start 2025.05.23 @ 15:21:33 End 2025.05.23 @ 15:39:41 Sessions 3 Manual Loads 0 Difficulty Rogue Special Mode Winter2019/RPGLIKE Game No. 75 Rogue 75 Adventurer 0 Explorer 0 Win Type - Total 1 Types 1/0/0/0/0/0/0/0/0/0 Lore% 41 Gallery% 41 Achievement% 43 Wizard Run 0 Options --------- Layout 0 ASCII 0 Keyboard 0 Movement Mouse Keybinds 0 Fullscreen 2 Font 18/SmallcapsGlow Map View 76x50 Zoom Use 1% Tactical HUD 1 Map Filters NONE Filters NONE Steam 1 RUN: 9ea1e25d-da3a-4ea1-a627-f58bc913df99